bitfinex/quotes_BTCUSD_20250620
["timestamp","ask_amount","ask_price","bid_price","bid_amount"]
[1750403233341,1.24426182,104760.0,104750.0,0.26303461]
[1750403233565,1.24426182,104760.0,104750.0,0.27258078]
[1750403234221,1.24426182,104760.0,104750.0,0.26303461]
[1750403234473,1.24426182,104760.0,104750.0,0.27374069]
[1750403234687,1.25380744,104760.0,104750.0,0.27374069]
[1750403234905,1.05334926,104760.0,104750.0,0.27374069]
[1750403235120,1.05334926,104760.0,104750.0,0.28328668]
[1750403235344,1.24426182,104760.0,104750.0,0.26419461]
[1750403235566,1.24426182,104760.0,104750.0,0.27374069]
[1750403236240,1.25380744,104760.0,104750.0,0.27374069]
[1750403236884,1.25380744,104760.0,104750.0,0.26419461]
[1750403237360,1.25380744,104760.0,104750.0,0.27374078]
[1750403238034,1.58500899,104760.0,104750.0,0.26419461]
[1750403238472,1.58500975,104760.0,104750.0,0.26419461]
[1750403238688,1.58500975,104760.0,104750.0,0.25464835]
[1750403238914,1.5754644,104760.0,104750.0,0.21319556]
[1750403239140,1.5766544,104760.0,104750.0,0.22274209]
[1750403239664,1.5766544,104760.0,104750.0,0.23228853]
[1750403240125,1.5754644,104760.0,104750.0,0.24183488]
[1750403240604,1.5754644,104760.0,104750.0,0.23228853]
[1750403240822,1.56591887,104760.0,104750.0,0.23228853]
[1750403241329,1.56591971,104760.0,104750.0,0.22274209]
[1750403242493,1.55637409,104760.0,104750.0,0.22274209]
[1750403244831,1.55637409,104760.0,104750.0,0.00076478]
[1750403245049,1.57812409,104760.0,104750.0,0.00076478]
[1750403245503,1.67225302,104760.0,104750.0,0.00076478]
[1750403245721,1.67340302,104760.0,104750.0,0.00076478]
[1750403246587,1.67340304,104760.0,104750.0,0.00076478]
[1750403247014,1.65280302,104760.0,104750.0,0.00076478]
[1750403248528,1.65280302,104760.0,104750.0,0.02086478]
[1750403249088,1.65165302,104760.0,104750.0,0.02086478]
[1750403249974,1.65165112,104760.0,104750.0,0.02086478]
[1750403252488,1.4864317,104760.0,104750.0,0.02086478]
[1750403252729,1.48643032,104760.0,104750.0,0.02086478]
[1750403258274,1.48642918,104760.0,104750.0,0.02086478]
[1750403261154,1.48642885,104760.0,104750.0,0.21179556]
[1750403261596,1.48642885,104760.0,104750.0,0.23349556]
[1750403261821,1.48642885,104760.0,104750.0,0.00076478]
[1750403262039,1.51007885,104760.0,104750.0,0.00076478]
[1750403263337,1.66423885,104760.0,104750.0,0.00076478]
[1750403263759,1.64173885,104760.0,104750.0,0.00076478]
[1750403263976,1.64173808,104760.0,104750.0,0.00076478]
[1750403264193,1.64173808,104760.0,104750.0,0.02146478]
[1750403266786,1.64173811,104760.0,104750.0,0.02146478]
[1750403269553,1.64173765,104760.0,104750.0,0.02146478]
[1750403272557,1.64173759,104760.0,104750.0,0.02146478]
[1750403275210,1.64173761,104760.0,104750.0,0.02146478]
[1750403276113,1.64058761,104760.0,104750.0,0.02146478]
[1750403277187,1.64058761,104760.0,104750.0,0.04336478]
[1750403277414,1.15522606,104760.0,104750.0,0.04459478]
[1750403278526,1.21410713,104760.0,104750.0,0.04459478]
[1750403278772,1.21410731,104760.0,104750.0,0.23552556]
[1750403278990,1.21410731,104760.0,104750.0,0.04459478]
[1750403279204,1.05994731,104760.0,104750.0,0.04459478]
[1750403279415,1.05994731,104760.0,104750.0,0.23552556]
[1750403279638,1.05994731,104760.0,104750.0,0.04459478]
[1750403280303,1.05994748,104760.0,104750.0,0.04459478]
[1750403281188,1.05100318,104760.0,104750.0,0.04459478]
[1750403281412,1.05099356,104760.0,104750.0,0.04459478]
[1750403282118,1.05993805,104760.0,104750.0,0.23552556]
[1750403285880,1.05993805,104760.0,104750.0,0.04459478]
[1750403286372,1.05993759,104760.0,104750.0,0.04459478]
[1750403286959,1.39113914,104760.0,104750.0,0.04459478]
[1750403287520,1.39113914,104760.0,104750.0,0.23552556]
[1750403288361,1.39113884,104760.0,104750.0,0.23552556]
[1750403288937,1.06948273,104760.0,104750.0,0.25461835]
[1750403289147,1.06948273,104760.0,104750.0,0.23552556]
[1750403289324,1.06948273,104760.0,104750.0,0.24507209]
[1750403289738,1.06948273,104760.0,104750.0,0.25461853]
[1750403289948,1.06948273,104760.0,104750.0,0.26416488]
[1750403294045,1.06948273,104760.0,104750.0,0.27371114]
[1750403295347,1.0694826,104760.0,104750.0,0.27371114]
[1750403295993,1.0694826,104760.0,104750.0,0.26416488]
[1750403296428,1.0694826,104760.0,104750.0,0.25461853]
[1750403296637,1.05993716,104760.0,104750.0,0.25461853]
[1750403300476,1.05993716,104760.0,104750.0,0.24507209]
[1750403301018,1.05993716,104760.0,104750.0,0.04459478]
[1750403301249,1.39113894,104760.0,104750.0,0.02146478]
[1750403302702,1.39226894,104760.0,104750.0,0.02146478]
[1750403304842,1.39113894,104760.0,104750.0,0.02146478]
[1750403305274,1.39113844,104760.0,104750.0,0.02146478]
[1750403305952,1.38219511,104760.0,104750.0,0.02146478]
[1750403306203,1.39113804,104760.0,104750.0,0.02146478]
[1750403306721,1.38219511,104760.0,104750.0,0.02146478]
[1750403306930,1.39113795,104760.0,104750.0,0.02146478]
[1750403307821,1.39113795,104760.0,104750.0,0.21239556]
[1750403308041,1.06948202,104760.0,104750.0,0.23419556]
[1750403308272,1.06948202,104760.0,104750.0,0.23544556]
[1750403308493,1.06948202,104760.0,104750.0,0.04451478]
[1750403308740,1.06948202,104760.0,104750.0,0.23544556]
[1750403309624,1.06948188,104760.0,104750.0,0.23544556]
[1750403312374,1.06053918,104760.0,104750.0,0.24499209]
[1750403312586,1.06948204,104760.0,104750.0,0.24499209]
[1750403313557,0.86730183,104760.0,104750.0,0.24499209]
[1750403314484,0.85835897,104760.0,104750.0,0.24499209]
[1750403315574,1.19835897,104760.0,104750.0,0.24499209]
[1750403315797,1.20790432,104760.0,104750.0,0.25453844]
[1750403317693,1.20790432,104760.0,104750.0,0.25453853]
[1750403321022,1.21684751,104760.0,104750.0,0.25453853]
[1750403321442,1.21684844,104760.0,104750.0,0.25453853]
[1750403324258,1.21684847,104760.0,104750.0,0.25453853]
[1750403326904,1.21684847,104760.0,104750.0,0.26408488]
[1750403328176,1.53850467,104760.0,104750.0,0.25453853]
[1750403329212,1.52895905,104760.0,104750.0,0.04326478]
[1750403329628,1.52895905,104760.0,104750.0,0.23419556]
[1750403331108,1.52895905,104760.0,104750.0,0.24374209]
[1750403331752,1.52895905,104760.0,104750.0,0.22194209]
[1750403332809,1.52895905,104760.0,104750.0,0.02146478]
[1750403334473,1.62423798,104760.0,104750.0,0.02146478]
[1750403334687,1.64741798,104760.0,104750.0,0.00076478]
[1750403335525,1.74268783,104760.0,104750.0,0.00076478]
[1750403335740,1.62541798,104760.0,104750.0,0.00076478]
[1750403336774,1.61647383,104760.0,104750.0,0.00076478]
[1750403336989,1.6254186,104760.0,104750.0,0.00076478]
[1750403338439,1.6254196,104760.0,104750.0,0.00076478]
[1750403339079,1.6254196,104760.0,104750.0,0.02326478]
[1750403339490,1.62541961,104760.0,104750.0,0.02326478]
[1750403341528,1.62541962,104760.0,104750.0,0.02326478]
[1750403343976,1.61647383,104760.0,104750.0,0.02326478]
[1750403344192,1.62423967,104760.0,104750.0,0.02326478]
[1750403345523,0.63063502,104760.0,104750.0,0.02326478]
[1750403345751,1.29303812,104760.0,104750.0,0.04698478]
[1750403345971,1.29303812,104760.0,104750.0,0.25578817]
[1750403345972,0.56275572,104760.0,104750.0,0.25578817]
[1750403346198,1.24424961,104760.0,104750.0,0.23791556]
[1750403346417,1.24424961,104760.0,104750.0,0.247462]
[1750403346903,1.24424961,104760.0,104750.0,0.26655461]
[1750403347771,1.23470426,104760.0,104750.0,0.26655461]
[1750403350396,1.23470426,104760.0,104750.0,0.27610078]
[1750403350868,1.23470426,104760.0,104750.0,0.26655461]
[1750403353370,1.22515882,104760.0,104750.0,0.25700835]
[1750403355498,1.21621298,104760.0,104750.0,0.25700835]
[1750403358450,1.21621146,104760.0,104750.0,0.25700835]
[1750403359067,1.21621146,104760.0,104750.0,0.247462]
[1750403359678,1.21621146,104760.0,104750.0,0.23791556]
[1750403360099,1.54741301,104760.0,104750.0,0.02326478]
[1750403365281,1.54741301,104760.0,104750.0,0.21419556]
[1750403365501,1.21621146,104760.0,104750.0,0.21419556]
[1750403366221,1.21621146,104760.0,104750.0,0.02326478]
[1750403369189,1.21621146,104760.0,104750.0,0.23569556]
[1750403369386,1.21621146,104760.0,104750.0,0.02326478]
[1750403372941,1.21621146,104760.0,104750.0,0.21419556]
[1750403373353,1.22515606,104760.0,104750.0,0.21419556]
[1750403373605,1.22515606,104760.0,104750.0,0.23619556]
[1750403373995,1.22480606,104760.0,104750.0,0.23619556]
[1750403374628,1.22480606,104760.0,104750.0,0.04526478]
[1750403375341,1.22480606,104760.0,104750.0,0.02326478]
[1750403375543,1.55600761,104760.0,104750.0,0.02326478]
[1750403376624,1.53311181,104760.0,104750.0,0.02326478]
[1750403376834,1.55601024,104760.0,104750.0,0.02326478]
[1750403377693,1.65128009,104760.0,104750.0,0.02326478]
[1750403378111,1.55601024,104760.0,104750.0,0.02326478]
[1750403378738,1.55601052,104760.0,104750.0,0.02326478]
[1750403381426,1.54706564,104760.0,104750.0,0.02326478]
[1750403381671,1.55601053,104760.0,104750.0,0.02326478]
[1750403383002,1.22480898,104760.0,104750.0,0.02326478]
[1750403383416,1.22480898,104760.0,104750.0,0.04416478]
[1750403384300,1.21586409,104760.0,104750.0,0.04416478]
[1750403384516,1.22480883,104760.0,104750.0,0.04416478]
[1750403384725,0.88515883,104760.0,104750.0,0.04416478]
[1750403384939,0.88515883,104760.0,104750.0,0.23509556]
[1750403385382,0.88515883,104760.0,104750.0,0.23625556]
[1750403386022,0.88515883,104760.0,104750.0,0.04532478]
[1750403386664,1.22515883,104760.0,104750.0,0.04532478]
[1750403387122,1.21621409,104760.0,104750.0,0.04416478]
[1750403387344,1.22515876,104760.0,104750.0,0.04416478]
[1750403387576,1.55636031,104760.0,104750.0,0.04416478]
[1750403387929,1.55636031,104760.0,104750.0,0.02326478]
[1750403388369,1.71040031,104760.0,104750.0,0.02326478]
[1750403392927,1.71040032,104760.0,104750.0,0.02326478]
[1750403397339,1.7104005,104760.0,104750.0,0.02326478]
[1750403398193,1.3791989,104760.0,104750.0,0.02326478]
[1750403398634,1.37919889,104760.0,104750.0,0.02326478]
[1750403399040,1.37919891,104760.0,104750.0,0.02326478]
[1750403400794,1.71040046,104760.0,104750.0,0.02326478]
[1750403403364,0.71679581,104760.0,104750.0,0.02326478]
[1750403403565,1.37919891,104760.0,104750.0,0.04546478]
[1750403407284,1.37919847,104760.0,104750.0,0.04546478]
[1750403407498,1.37919847,104760.0,104750.0,0.04670478]
[1750403409756,1.37919847,104760.0,104750.0,0.23763556]
[1750403409976,1.37919848,104760.0,104750.0,0.04670478]
[1750403410592,1.37919848,104760.0,104750.0,0.23763556]
[1750403411255,1.37919848,104760.0,104750.0,0.04670478]
[1750403413157,1.37919848,104760.0,104750.0,0.23763556]
[1750403413713,1.37919848,104760.0,104750.0,0.04670478]
[1750403414522,1.37919848,104760.0,104750.0,0.23763556]
[1750403415596,1.37919849,104760.0,104750.0,0.23763556]
[1750403417226,1.37919849,104760.0,104750.0,0.04670478]
[1750403418563,1.37919847,104760.0,104750.0,0.04670478]
[1750403418768,1.71040002,104760.0,104750.0,0.04546478]
[1750403420673,1.71040009,104760.0,104750.0,0.04546478]
[1750403421930,1.71040009,104760.0,104750.0,0.02326478]
[1750403424228,1.71040017,104760.0,104750.0,0.02326478]
[1750403425269,1.71036017,104760.0,104750.0,0.02326478]
[1750403427022,1.71036045,104760.0,104750.0,0.02326478]
[1750403428616,1.82957768,104760.0,104750.0,0.02326478]
[1750403428840,1.85259768,104760.0,104750.0,0.00076478]
[1750403429955,1.85259824,104760.0,104750.0,0.00076478]
[1750403430173,1.32043839,104760.0,104750.0,0.02426478]
[1750403430393,1.38870463,104760.0,104750.0,0.23797556]
[1750403430639,1.38870463,104760.0,104750.0,0.307522]
[1750403431060,1.38870463,104760.0,104750.0,0.29797556]
[1750403431306,1.37915946,104760.0,104750.0,0.10704478]
[1750403431718,1.37915946,104760.0,104750.0,0.29797556]
[1750403431925,1.37915946,104760.0,104750.0,0.30752209]
[1750403435188,1.37915871,104760.0,104750.0,0.30752209]
[1750403435627,1.37915867,104760.0,104750.0,0.30752209]
[1750403441354,1.37915843,104760.0,104750.0,0.30752209]
[1750403442210,1.37021409,104760.0,104750.0,0.30752209]
[1750403442623,1.37021409,104760.0,104750.0,0.31706853]
[1750403443658,1.21621409,104760.0,104750.0,0.31706853]
[1750403443870,1.37021409,104760.0,104750.0,0.31706853]
[1750403447088,1.37021409,104760.0,104750.0,0.30752209]
[1750403450361,1.37021409,104760.0,104750.0,0.31706853]
[1750403453381,1.37915791,104760.0,104750.0,0.31706853]
[1750403453838,1.37915791,104760.0,104750.0,0.32661488]
[1750403454561,1.37915791,104760.0,104750.0,0.33616114]
[1750403455596,1.37915817,104760.0,104750.0,0.33616114]
[1750403457955,1.38870361,104760.0,104750.0,0.34570731]
[1750403459490,1.3887042,104760.0,104750.0,0.34570731]
[1750403460935,1.21684234,104760.0,104750.0,0.34452668]
[1750403461155,1.4077549,104760.0,104750.0,0.34577668]
[1750403461356,1.40775506,104760.0,104750.0,0.34577668]
[1750403461561,1.2168425,104760.0,104750.0,0.34577668]
[1750403462824,1.02530153,104760.0,104750.0,0.34577668]
[1750403463041,1.20789639,104760.0,104750.0,0.34577668]
[1750403464625,1.21744183,104760.0,104750.0,0.34577668]
[1750403465559,1.20789639,104760.0,104750.0,0.34577668]
[1750403465764,1.40835494,104760.0,104750.0,0.33623078]
[1750403465963,1.04545651,104760.0,104750.0,0.34577686]
[1750403466798,1.04545651,104760.0,104750.0,0.34577641]
[1750403467763,1.38545651,104760.0,104750.0,0.34577641]
[1750403467974,1.39500204,104760.0,104750.0,0.34577641]
[1750403468325,1.39500277,104760.0,104750.0,0.34577641]
[1750403469245,1.39500277,104760.0,104750.0,0.34329641]
[1750403469452,1.05500277,104760.0,104750.0,0.34329641]
[1750403472348,1.0454576,104760.0,104750.0,0.33375042]
[1750403472816,1.3854576,104760.0,104750.0,0.33375042]
[1750403472986,1.3854576,104760.0,104750.0,0.34329641]
[1750403474903,1.3854576,104760.0,104750.0,0.33375042]
[1750403475116,1.3854576,104760.0,104750.0,0.34329641]
[1750403476940,1.3854576,104760.0,104750.0,0.33375042]
[1750403477494,1.37591225,104760.0,104750.0,0.33375042]
[1750403480502,1.37591225,104760.0,104750.0,0.34329641]
[1750403480720,1.18499969,104760.0,104750.0,0.34329641]
[1750403480933,1.18499969,104760.0,104750.0,0.34329596]
[1750403481718,1.39880038,104760.0,104750.0,0.34329596]
[1750403482162,1.1983422,104760.0,104750.0,0.34329596]
[1750403483339,1.38925476,104760.0,104750.0,0.34329596]
[1750403483847,1.1983422,104760.0,104750.0,0.34329596]
[1750403484152,1.0443822,104760.0,104750.0,0.34329596]
[1750403484334,1.1983022,104760.0,104750.0,0.34329596]
[1750403486268,1.0443822,104760.0,104750.0,0.34329596]
[1750403493732,1.24484038,104760.0,104750.0,0.34329596]
[1750403497193,1.24484618,104760.0,104750.0,0.34329596]
[1750403499399,1.044388,104760.0,104750.0,0.34329596]
[1750403500001,1.04438764,104760.0,104750.0,0.34329596]
[1750403502313,1.02149371,104760.0,104750.0,0.34329596]
[1750403502879,1.0443894,104760.0,104750.0,0.34329596]
[1750403512573,1.0539342,104760.0,104750.0,0.34329596]
[1750403513014,1.06347964,104760.0,104750.0,0.34329596]
[1750403517017,1.0539342,104760.0,104750.0,0.34329596]
[1750403517516,1.03484359,104760.0,104750.0,0.34321596]
[1750403517767,0.02289569,104760.0,104750.0,0.53633596]
[1750403517994,0.50824063,104770.0,104760.0,0.26381834]
[1750403518219,0.50824063,104770.0,104760.0,0.69029882]
[1750403518441,0.33120155,104780.0,104770.0,0.21952737]
[1750403518661,0.67120155,104790.0,104780.0,0.26627643]
[1750403518893,0.33120155,104790.0,104780.0,0.26627643]
[1750403519334,0.67120155,104790.0,104780.0,0.26627643]
[1750403520626,0.6809699,104790.0,104780.0,0.26627643]
[1750403521039,0.6819699,104790.0,104780.0,0.26827643]
[1750403521449,0.69051206,104790.0,104780.0,0.26827643]
[1750403521893,0.69051206,104790.0,104780.0,0.26927643]
[1750403522161,0.6809699,104790.0,104780.0,0.26927643]
[1750403522811,0.69051206,104790.0,104780.0,0.26927643]
[1750403523052,0.35931042,104790.0,104780.0,0.26927643]
[1750403523273,0.6809699,104790.0,104780.0,0.26927643]
[1750403524927,0.34976835,104790.0,104780.0,0.26927643]
[1750403525164,0.6809699,104790.0,104780.0,0.26927643]
[1750403529751,0.3409699,104790.0,104780.0,0.26927643]
[1750403529984,0.05,104800.0,104790.0,0.21948548]
[1750403530221,1.0520518,104800.0,104790.0,0.45893548]
[1750403530437,1.0520518,104800.0,104790.0,0.55421441]
[1750403530879,0.3896487,104800.0,104790.0,0.55421441]
[1750403531095,0.72085025,104800.0,104790.0,0.55421441]
[1750403531306,0.72132057,104800.0,104790.0,0.55421441]
[1750403531518,0.73074035,104800.0,104790.0,0.55421441]
[1750403533031,1.0619419,104800.0,104790.0,0.55421441]
[1750403533235,0.3995388,104800.0,104790.0,0.55421441]
[1750403533447,0.72826035,104800.0,104790.0,0.55421441]
[1750403534349,1.0594619,104800.0,104790.0,0.55421441]
[1750403536161,0.3970588,104800.0,104790.0,0.55421441]
[1750403536395,1.0594619,104800.0,104790.0,0.55421441]
[1750403537995,0.6722932,104800.0,104790.0,0.55421441]
[1750403541584,0.0098901,104800.0,104790.0,0.55421441]
[1750403542035,0.6722932,104800.0,104790.0,0.55421441]
[1750403544009,0.34109165,104800.0,104790.0,0.55421441]
[1750403545424,0.0098901,104800.0,104790.0,0.55421441]
[1750403545613,0.34109165,104800.0,104790.0,0.55421441]
[1750403546820,0.0098901,104800.0,104790.0,0.55421441]
[1750403547235,0.6722932,104800.0,104790.0,0.55421441]
[1750403549263,0.0098901,104800.0,104790.0,0.55421441]
[1750403549468,0.6722932,104800.0,104790.0,0.55421441]
[1750403550035,0.68109165,104800.0,104790.0,0.55421441]
[1750403550642,0.3498901,104800.0,104790.0,0.55421441]
[1750403550887,0.68109165,104800.0,104790.0,0.55421441]
[1750403551565,1.0122932,104800.0,104790.0,0.55421441]
[1750403556068,0.3498901,104800.0,104790.0,0.55421441]
[1750403556281,1.0122932,104800.0,104790.0,0.55521441]
[1750403556743,1.0122932,104800.0,104790.0,0.55721441]
[1750403557453,0.3498901,104800.0,104790.0,0.55721441]
[1750403557687,0.68109165,104800.0,104790.0,0.55721441]
[1750403558141,0.0098901,104800.0,104790.0,0.55721441]
[1750403558609,0.34109165,104800.0,104790.0,0.55721441]
[1750403561734,0.0098901,104800.0,104790.0,0.55721441]
[1750403561943,0.34109165,104800.0,104790.0,0.55721441]
[1750403564030,0.0098901,104800.0,104790.0,0.55721441]
[1750403564232,0.34109165,104800.0,104790.0,0.55721441]
[1750403565241,0.33167187,104800.0,104790.0,0.55721441]
[1750403566707,0.00047032,104800.0,104790.0,0.55721441]
[1750403566924,0.33167187,104800.0,104790.0,0.55721441]
[1750403567587,0.34106334,104800.0,104790.0,0.55721441]
[1750403571464,0.00986179,104800.0,104790.0,0.55721441]
[1750403571665,0.34106334,104800.0,104790.0,0.55721441]
[1750403575580,0.34106334,104800.0,104790.0,0.55729441]
[1750403578786,0.00986179,104800.0,104790.0,0.55729441]
[1750403578992,0.34106334,104800.0,104790.0,0.55729441]
[1750403583466,0.00986179,104800.0,104790.0,0.55729441]
[1750403583675,0.34106334,104800.0,104790.0,0.55729441]
[1750403587025,0.00986179,104800.0,104790.0,0.55729441]
[1750403587231,0.34106334,104800.0,104790.0,0.55729441]
[1750403592950,0.00986179,104800.0,104790.0,0.55729441]
[1750403593160,0.34106334,104800.0,104790.0,0.55729441]
[1750403593548,0.00986179,104800.0,104790.0,0.55729441]
[1750403593779,0.34106334,104800.0,104790.0,0.55729441]
[1750403608422,0.00986179,104800.0,104790.0,0.55729441]
[1750403608634,0.34106334,104800.0,104790.0,0.55729441]
[1750403609511,0.67226489,104800.0,104790.0,0.55729441]
[1750403609763,0.34106334,104800.0,104790.0,0.55729441]
[1750403612351,0.11021215,104800.0,104790.0,0.55729441]
[1750403617217,0.11974972,104800.0,104790.0,0.55729441]
[1750403619473,0.34073912,104800.0,104790.0,0.55729441]
[1750403623202,0.34073912,104800.0,104790.0,0.55612441]
[1750403623904,0.34073912,104800.0,104790.0,0.55733441]
[1750403626575,0.34073912,104800.0,104790.0,0.55612441]
[1750403626815,0.34073912,104800.0,104790.0,0.55733441]
[1750403627424,0.16481176,104800.0,104790.0,0.55733441]
[1750403632215,0.17429656,104800.0,104790.0,0.55733441]
[1750403634748,0.0094848,104800.0,104790.0,0.55733441]
[1750403634957,0.33120155,104800.0,104790.0,0.55733441]
[1750403636699,0.73112824,104810.0,104800.0,0.21946454]
[1750403636878,1.07197961,104810.0,104800.0,0.25902454]
[1750403638151,1.07297961,104810.0,104800.0,0.25902454]
[1750403639433,1.07297961,104810.0,104800.0,0.31902454]
[1750403640122,1.08252022,104810.0,104800.0,0.31902454]
[1750403640362,1.07297961,104810.0,104800.0,0.31902454]
[1750403641669,0.73223763,104810.0,104800.0,0.31902454]
[1750403641886,1.06343918,104810.0,104800.0,0.31902454]
[1750403642519,1.06343909,104810.0,104800.0,0.31902454]
[1750403642945,1.07297943,104810.0,104800.0,0.31902454]
[1750403643580,1.04183909,104810.0,104800.0,0.31902454]
[1750403644008,1.03229884,104810.0,104800.0,0.34092454]
[1750403644222,1.04183918,104810.0,104800.0,0.34092454]
[1750403644645,1.03229884,104810.0,104800.0,0.34092454]
[1750403645266,0.70109729,104810.0,104800.0,0.34092454]
[1750403645472,1.03229884,104810.0,104800.0,0.34092454]
[1750403645686,1.03229884,104810.0,104800.0,0.34213454]
[1750403645895,0.70109729,104810.0,104800.0,0.43620347]
[1750403646123,1.03229884,104810.0,104800.0,0.45961347]
[1750403646530,0.70109729,104810.0,104800.0,0.45961347]
[1750403646744,1.03229884,104810.0,104800.0,0.45961347]
[1750403647165,0.70109729,104810.0,104800.0,0.45961347]
[1750403647395,1.03229884,104810.0,104800.0,0.45961347]
[1750403647660,0.70109729,104810.0,104800.0,0.45961347]
[1750403647884,0.36109729,104810.0,104800.0,0.79081502]
[1750403648107,0.36109729,104810.0,104800.0,1.12201657]
[1750403648333,0.35149447,104810.0,104800.0,1.28655742]
[1750403648764,0.35149447,104810.0,104800.0,1.31521042]
[1750403648981,0.35149447,104810.0,104800.0,0.65280732]
[1750403649201,0.35049447,104810.0,104800.0,0.65280732]
[1750403649420,0.35049447,104810.0,104800.0,0.65380732]
[1750403649631,0.35049447,104810.0,104800.0,1.31621042]
[1750403650487,0.35049447,104810.0,104800.0,1.31721042]
[1750403650700,0.35049447,104810.0,104800.0,1.31621042]
[1750403650911,0.35049447,104810.0,104800.0,1.31521042]
[1750403651119,0.35149447,104810.0,104800.0,1.31521042]
[1750403651336,0.35249447,104810.0,104800.0,1.31521042]
[1750403652158,0.35249447,104810.0,104800.0,0.65280732]
[1750403652374,0.35249447,104810.0,104800.0,1.31521042]
[1750403655806,0.35149447,104810.0,104800.0,1.31521042]
[1750403656195,0.35149447,104810.0,104800.0,1.28655742]
[1750403656435,0.35049447,104810.0,104800.0,1.28655742]
[1750403657002,0.35149447,104810.0,104800.0,1.28655742]
[1750403657209,0.35249447,104810.0,104800.0,1.28655742]
[1750403659964,0.35249447,104810.0,104800.0,0.62415432]
[1750403660183,0.35249447,104810.0,104800.0,1.28655742]
[1750403665354,0.35249447,104810.0,104800.0,1.44211742]
[1750403666958,0.35249447,104810.0,104800.0,0.77971432]
[1750403667196,0.35249447,104810.0,104800.0,1.44211742]
[1750403676180,0.35249447,104810.0,104800.0,0.77971432]
[1750403676409,0.35249447,104810.0,104800.0,1.44211742]
[1750403693920,0.35249447,104810.0,104800.0,1.44163742]
[1750403694767,0.35249447,104810.0,104800.0,1.28655742]
[1750403694984,0.35249447,104810.0,104800.0,1.44159742]
[1750403695637,0.35249447,104810.0,104800.0,1.67067742]
[1750403697545,0.35249447,104810.0,104800.0,1.65613657]
[1750403697760,0.35249447,104810.0,104800.0,1.67067742]
[1750403698421,0.35249447,104810.0,104800.0,1.00827432]
[1750403698631,0.35249447,104810.0,104800.0,1.67067742]
[1750403701051,0.35249447,104810.0,104800.0,1.65613657]
[1750403701237,0.35249447,104810.0,104800.0,1.67067742]
[1750403702625,0.35249447,104810.0,104800.0,0.81367432]
[1750403702826,0.35249447,104810.0,104800.0,1.67115742]
[1750403709114,0.35249447,104810.0,104800.0,1.00875432]
[1750403709329,0.35249447,104810.0,104800.0,1.72115742]
[1750403710871,0.35249447,104810.0,104800.0,2.05235897]
[1750403711326,0.35249447,104810.0,104800.0,1.72115742]
[1750403711786,0.35249447,104810.0,104800.0,2.42115742]
[1750403712316,0.35249447,104810.0,104800.0,1.72115742]
[1750403713675,0.35249447,104810.0,104800.0,2.01745742]
[1750403713892,0.35249447,104810.0,104800.0,2.04610642]
[1750403714636,0.35249447,104810.0,104800.0,3.46893297]
[1750403714855,0.35249447,104810.0,104800.0,2.47532832]
[1750403715074,0.35249447,104810.0,104800.0,3.13773142]
[1750403715302,0.35249447,104810.0,104800.0,3.83773142]
[1750403715536,0.35249447,104810.0,104800.0,4.16893297]
[1750403716022,0.35149447,104810.0,104800.0,4.08773142]
[1750403716693,0.35249447,104810.0,104800.0,4.08773142]
[1750403716915,0.35249447,104810.0,104800.0,3.42532832]
[1750403717129,0.35249447,104810.0,104800.0,4.41893297]
[1750403720183,0.35249447,104810.0,104800.0,3.52582832]
[1750403720394,0.35249447,104810.0,104800.0,4.18823142]
[1750403721860,0.35249447,104810.0,104800.0,4.51943297]
[1750403722509,0.35249447,104810.0,104800.0,4.18823142]
[1750403723937,0.35249447,104810.0,104800.0,4.51943297]
[1750403724996,0.35249447,104810.0,104800.0,4.06592097]
[1750403725669,0.35249447,104810.0,104800.0,3.73471942]
[1750403725908,0.35249447,104810.0,104800.0,4.40592097]
[1750403728377,0.35249447,104810.0,104800.0,4.25076097]
[1750403728643,0.35249447,104810.0,104800.0,3.84717642]
[1750403729298,0.35249447,104810.0,104800.0,3.84777642]
[1750403731704,0.35249447,104810.0,104800.0,3.14777642]
[1750403732120,0.35249447,104810.0,104800.0,2.95889542]
[1750403732331,0.35249447,104810.0,104800.0,2.56787542]
[1750403732579,0.35249447,104810.0,104800.0,2.61530642]
[1750403733224,0.35249447,104810.0,104800.0,2.02280332]
[1750403733432,0.35249447,104810.0,104800.0,2.68520642]
[1750403733646,0.35249447,104810.0,104800.0,3.10257842]
[1750403733892,0.35249447,104810.0,104800.0,3.29905842]
[1750403734111,5e-05,104820.0,104800.0,4.65306462]
[1750403734329,5e-05,104830.0,104820.0,5.83943117]
[1750403734540,9.702e-05,104830.0,104820.0,4.0301371]
[1750403734751,9.702e-05,104830.0,104820.0,3.43082055]
[1750403734973,9.702e-05,104830.0,104820.0,3.25821655]
[1750403735213,9.702e-05,104830.0,104820.0,3.76057655]
[1750403735427,9.702e-05,104830.0,104820.0,3.95821655]
[1750403736268,9.702e-05,104830.0,104820.0,3.98735645]
[1750403736721,0.00109702,104830.0,104820.0,4.04735645]
[1750403736936,0.00109702,104830.0,104820.0,4.04568881]
[1750403739348,0.00109702,104830.0,104820.0,4.06478881]
[1750403739563,0.00109702,104830.0,104820.0,3.36478881]
[1750403739767,0.00109702,104830.0,104820.0,3.36462881]
[1750403740183,0.00109702,104830.0,104820.0,3.66092881]
[1750403740426,0.00109702,104830.0,104820.0,2.96834835]
[1750403740638,0.33041773,104870.0,104860.0,0.21933896]
[1750403740639,0.25274669,104870.0,104860.0,0.21933896]
[1750403740846,0.25274669,104870.0,104860.0,0.51205789]
[1750403740847,0.25283644,104870.0,104860.0,0.51205789]
[1750403741734,0.25283644,104870.0,104860.0,0.51201789]
[1750403742149,0.25283644,104870.0,104860.0,0.51601789]
[1750403742781,0.25283644,104870.0,104860.0,0.51901789]
[1750403743874,0.28133644,104870.0,104860.0,0.51901789]
[1750403746976,0.02858975,104870.0,104860.0,0.51901789]
[1750403747204,0.35895748,104870.0,104860.0,0.51901789]
[1750403748585,0.02858975,104870.0,104860.0,0.51901789]
[1750403751616,0.35895748,104870.0,104860.0,0.51901789]
[1750403752049,0.02858975,104870.0,104860.0,0.51901789]
[1750403752281,0.35895748,104870.0,104860.0,0.51901789]
[1750403754411,8.975e-05,104870.0,104860.0,0.62873874]
[1750403754659,8.975e-05,104870.0,104860.0,0.62957874]
[1750403754860,8.975e-05,104870.0,104860.0,0.98858547]
[1750403757909,8.975e-05,104870.0,104860.0,1.32006111]
[1750403758122,8.975e-05,104870.0,104860.0,1.4956004]
[1750403758327,8.975e-05,104870.0,104860.0,1.47006111]
[1750403758804,8.975e-05,104870.0,104860.0,1.46706111]
[1750403759008,8.975e-05,104870.0,104860.0,1.46306111]
[1750403759427,8.975e-05,104870.0,104860.0,2.89797211]
[1750403759636,8.975e-05,104870.0,104860.0,2.83139111]
[1750403760055,8.975e-05,104870.0,104860.0,3.03139111]
[1750403760262,8.975e-05,104870.0,104860.0,3.28139111]
[1750403761062,8.975e-05,104870.0,104860.0,3.78315111]
[1750403761328,8.975e-05,104870.0,104860.0,3.98223111]
[1750403761958,5e-05,104880.0,104870.0,1.9138839]
[1750403762166,5e-05,104880.0,104870.0,2.39193756]
[1750403763237,5e-05,104880.0,104870.0,2.34193756]
[1750403763444,5e-05,104880.0,104870.0,2.39193756]
[1750403768140,5e-05,104880.0,104870.0,2.41193756]
[1750403768600,5e-05,104880.0,104870.0,3.11193756]
[1750403774473,5e-05,104880.0,104870.0,2.41193756]